fUSD/lending_fUSD_20250416
["ID","MTS","AMOUNT","RATE_DAILY","PERIOD"]
[358197554,1744830633583,-500.0,0.00055446,120]
[358197555,1744830633592,-500.0,0.00055446,120]
[358197556,1744830633603,-361.86059763,0.00055446,120]
[358197557,1744830633616,-680.35,0.00055446,120]
[358197558,1744830633626,-500.0,0.00055446,120]
[358197559,1744830633636,-500.0,0.00055446,60]
[358197560,1744830633647,-500.0,0.00055446,120]
[358197561,1744830633656,-500.0,0.00055446,120]
[358197562,1744830633666,-500.0,0.00055446,120]
[358197563,1744830633676,-500.0,0.00055446,120]
[358197564,1744830633686,-500.0,0.00055446,120]
[358197565,1744830633696,-584.464357,0.00055446,120]
[358197566,1744830633706,-500.0,0.00055446,120]
[358197567,1744830633716,-500.0,0.00055446,120]
[358197568,1744830633725,-500.0,0.00055446,120]
[358197569,1744830633735,-500.0,0.00055446,120]
[358197570,1744830633744,-500.0,0.00055446,120]
[358197571,1744830633754,-500.0,0.00055446,120]
[358197572,1744830633764,-500.0,0.00055446,120]
[358197573,1744830633774,-500.0,0.00055446,120]
[358197574,1744830633784,-500.0,0.00055446,120]
[358197575,1744830633794,-500.0,0.00055446,120]
[358197576,1744830633804,-763.58,0.00055446,120]
[358197577,1744830633814,-500.0,0.00055446,120]
[358197578,1744830633823,-500.0,0.00055446,120]
[358197579,1744830633832,-500.0,0.00055446,120]
[358197580,1744830633842,-500.0,0.00055446,120]
[358197581,1744830633852,-500.0,0.00055446,120]
[358197582,1744830633861,-500.0,0.00055446,120]
[358197583,1744830633871,-2516.51,0.00055446,120]
[358197584,1744830633881,-500.0,0.00055446,120]
[358197585,1744830633890,-500.0,0.00055446,120]
[358197586,1744830633900,-500.0,0.00055446,120]
[358197587,1744830633909,-500.0,0.00055446,120]
[358197588,1744830633919,-1799.29,0.00055446,120]
[358197589,1744830633928,-500.0,0.00055446,120]
[358197590,1744830633937,-906.19,0.00055446,120]
[358197591,1744830633946,-500.0,0.00055446,120]
[358197592,1744830633955,-633.91,0.00055446,120]
[358197593,1744830633964,-500.0,0.00055446,120]
[358197594,1744830633974,-500.0,0.00055446,120]
[358197595,1744830633983,-4616.81,0.00055446,120]
[358197596,1744830633993,-500.0,0.00055446,120]
[358197597,1744830634002,-500.0,0.00055447,120]
[358197598,1744830634011,-715.77,0.00055447,120]
[358197599,1744830634022,-404.6158635,0.00055447,120]
[358197600,1744830634031,-500.0,0.00055447,120]
[358197601,1744830634040,-500.0,0.00055447,120]
[358197602,1744830634049,-500.0,0.00055447,120]
[358197603,1744830634058,-305.43916242,0.00055447,120]
[358197604,1744830634068,-500.0,0.00055447,120]
[358197605,1744830634077,-500.0,0.00055447,120]
[358197606,1744830634086,-500.0,0.00055447,120]
[358197607,1744830634097,-500.0,0.00055447,30]
[358197608,1744830634106,-354.4140137,0.00055447,120]
[358197609,1744830634116,-500.0,0.00055447,120]
[358197610,1744830634126,-504.30940885,0.00055447,120]
[358197611,1744830634134,-500.0,0.00055447,120]
[358197612,1744830634143,-500.0,0.00055447,120]
[358197613,1744830634153,-500.0,0.00055447,120]
[358197614,1744830634162,-500.0,0.00055447,120]
[358197615,1744830634172,-500.0,0.00055447,120]
[358197616,1744830634181,-500.0,0.00055447,120]
[358197617,1744830634190,-500.0,0.00055447,120]
[358197618,1744830634199,-500.0,0.00055447,120]
[358197619,1744830634209,-500.0,0.00055447,120]
[358197620,1744830634219,-500.0,0.00055447,120]
[358197621,1744830634228,-450.41115446,0.00055447,120]
[358197622,1744830634237,-500.0,0.00055447,120]
[358197623,1744830634247,-500.0,0.00055447,120]
[358197624,1744830634256,-500.0,0.00055447,120]
[358197625,1744830634265,-500.0,0.00055447,120]
[358197626,1744830634274,-500.0,0.00055447,120]
[358197627,1744830634283,-500.0,0.00055447,120]
[358197628,1744830634291,-500.0,0.00055447,120]
[358197629,1744830634301,-500.0,0.00055447,120]
[358197630,1744830634310,-500.0,0.00055447,120]
[358197631,1744830634320,-500.0,0.00055447,120]
[358197632,1744830634330,-500.0,0.00055447,120]
[358197633,1744830634342,-500.0,0.00055447,120]
[358197634,1744830634353,-500.0,0.00055447,120]
[358197635,1744830634366,-500.0,0.00055447,120]
[358197636,1744830634380,-500.0,0.00055447,120]
[358197637,1744830634393,-500.0,0.00055447,120]
[358197638,1744830634405,-190.55315689,0.00055447,120]
[358197639,1744830634416,-500.0,0.00055447,120]
[358197640,1744830634426,-500.0,0.00055447,120]
[358197641,1744830634437,-500.0,0.00055447,120]
[358197642,1744830634449,-500.0,0.00055447,120]
[358197643,1744830634460,-500.0,0.00055447,120]
[358197644,1744830634472,-501.87108827,0.00055447,120]
[358197645,1744830634483,-500.0,0.00055447,120]
[358197646,1744830634494,-500.0,0.00055447,120]
[358197647,1744830634507,-56220.6610082,0.00055449,3]
[358197648,1744830634518,-500.0,0.00055449,120]
[358197649,1744830634529,-448.32,0.00055449,120]
[358197650,1744830634540,-500.0,0.00055449,120]
[358197651,1744830634552,-500.0,0.00055449,120]
[358197652,1744830634565,-500.0,0.00055449,120]
[358197653,1744830634575,-500.0,0.00055449,120]
[358197654,1744830634586,-500.0,0.00055449,120]
[358197655,1744830634598,-500.0,0.00055449,120]
[358197656,1744830634611,-500.0,0.00055449,120]
[358197657,1744830634621,-500.0,0.00055449,120]
[358197658,1744830634632,-14055.165252,0.00055449,3]
[358197659,1744830634644,-14055.165252,0.00055449,3]
[358197660,1744830634656,-28110.3305041,0.0005545,3]
[358197661,1744830634667,-5635.0,0.00055452,120]
[358197662,1744830634678,-14055.165252,0.00055454,3]
[358197663,1744830634691,-500.0,0.00055454,120]
[358197664,1744830634702,-500.0,0.00055454,120]
[358197665,1744830634713,-500.0,0.00055454,120]
[358197666,1744830634724,-500.0,0.00055454,120]
[358197667,1744830634735,-500.0,0.00055454,120]
[358197668,1744830634746,-500.0,0.00055454,120]
[358197669,1744830634758,-84330.9915122,0.00055454,3]
[358197670,1744830634769,-73252.5815754,0.00055454,3]
[358197671,1744830634781,-341.43351157,0.00055454,7]
[358197672,1744830634792,-56220.6610082,0.00055455,3]
[358197673,1744830634803,-48835.0543836,0.00055455,3]
[358197674,1744830634815,-42165.4957561,0.00055455,3]
[358197675,1744830634827,-40695.878653,0.00055455,3]
[358197676,1744830634838,-3988.794013,0.00055456,2]
[358197677,1744830634850,-2172.9254173,0.00055456,2]
[358197678,1744830634861,-262.9286934,0.00055456,2]
[358197679,1744830634872,-8139.1757306,0.00055456,3]
[358197680,1744830634882,-1000.0,0.00055457,120]
[358197681,1744830634891,-14055.165252,0.00055457,3]
[358197682,1744830634904,-8139.1757306,0.00055457,3]
[358197683,1744830634915,-14055.165252,0.00055458,3]
[358197684,1744830634927,-8139.1757306,0.00055458,3]
[358197685,1744830634940,-150.0,0.00055458,14]
[358197686,1744830634952,-500.0,0.00055458,120]
[358197687,1744830634963,-643.77,0.00055458,120]
[358197688,1744830634975,-587.80284932,0.00055458,120]
[358197689,1744830634988,-500.0,0.00055458,120]
[358197690,1744830634999,-500.0,0.00055458,120]
[358197691,1744830635010,-500.0,0.00055458,120]
[358197692,1744830635020,-500.0,0.00055458,120]
[358197693,1744830635030,-8139.1757306,0.00055459,3]
[358197694,1744830635040,-635.32,0.00055459,120]
[358197695,1744830635051,-509.71,0.00055459,120]
[358197696,1744830635062,-57726.44220893,0.00055459,7]
[358197697,1744830635079,-90826.65779107,0.00055459,7]
[358197698,1744830635091,-500.0,0.00055459,118]
[358197699,1744830635104,-520.32,0.00055459,120]
[358197700,1744830635115,-500.0,0.00055459,120]
[358197701,1744830635125,-500.0,0.00055459,120]
[358197702,1744830635136,-1396.29,0.00055459,2]
[358197703,1744830635147,-500.0,0.00055459,120]
[358197704,1744830635157,-500.0,0.00055459,120]
[358197705,1744830635168,-500.0,0.00055459,120]
[358197706,1744830635178,-2578.79,0.00055459,120]
[358197707,1744830635189,-500.0,0.00055459,120]
[358197708,1744830635200,-500.0,0.00055459,120]
[358197709,1744830635211,-500.0,0.00055459,120]
[358197710,1744830635222,-24417.5271918,0.00055459,3]
[358197711,1744830635232,-159.53803509,0.00055459,120]
[358197712,1744830635242,-16278.3514612,0.0005546,3]
[358197713,1744830635252,-500.0,0.00055463,120]
[358197714,1744830635263,-643.77,0.00055463,120]
[358197715,1744830635273,-500.0,0.00055463,120]
[358197716,1744830635283,-500.0,0.00055463,120]
[358197717,1744830635293,-500.0,0.00055463,120]
[358197718,1744830635304,-500.0,0.00055463,120]
[358197719,1744830635315,-8415.03014118,0.00055464,64]
[358197720,1744830635328,-117495.21317236,0.00055464,64]
[358197721,1744830635339,-65113.4058448,0.00055464,3]
[358197722,1744830635351,-1192.3,0.00055464,120]
[358197723,1744830635362,-1579.3,0.00055464,120]
[358197724,1744830635373,-771.18,0.00055464,8]
[358197725,1744830635383,-1172.38,0.00055464,120]
[358197726,1744830635394,-500.0,0.00055464,120]
[358197727,1744830635404,-500.0,0.00055464,120]
[358197728,1744830635414,-500.0,0.00055464,120]
[358197729,1744830635424,-500.0,0.00055464,120]
[358197730,1744830635435,-635.32,0.00055464,120]
[358197731,1744830635445,-509.71,0.00055464,120]
[358197732,1744830635456,-141720.14285757,0.00055464,7]
[358197733,1744830635468,-6832.95714243,0.00055464,7]
[358197734,1744830635478,-500.0,0.00055464,2]
[358197735,1744830635488,-500.0,0.00055464,118]
[358197736,1744830635498,-520.32,0.00055464,120]
[358197737,1744830635508,-500.0,0.00055464,120]
[358197738,1744830635519,-500.0,0.00055464,120]
[358197739,1744830635529,-37.63833662,0.00055464,120]
[358197740,1744830635546,-962.36166338,0.00055464,120]
[358197741,1744830635556,-193.8,0.00055464,120]
[358197742,1744830635567,-1396.29,0.00055464,2]
[358197743,1744830635577,-147.86187872,0.00055464,120]
[358197753,1744830638314,-1618.29,0.00055445,120]
[358197754,1744830638325,-500.0,0.00055446,120]
[358197755,1744830638336,-610.56,0.00055446,120]
[358197756,1744830638347,-500.0,0.00055449,118]
[358197757,1744830638357,-500.0,0.00055454,118]
[358197758,1744830638366,-500.0,0.00055458,118]
[358197759,1744830638375,-1618.29,0.00055459,120]
[358197760,1744830638384,-459.177468,0.00055463,118]
[358197761,1744830638393,-495.90812128,0.00055464,120]
[358197762,1744830638402,-500.0,0.00055464,120]
[358197763,1744830638411,-500.0,0.00055464,120]
[358197764,1744830638420,-500.0,0.00055464,120]
[358197765,1744830638430,-500.0,0.00055464,120]
[358197766,1744830638439,-151.0,0.00055464,120]
[358197767,1744830638448,-2578.79,0.00055464,120]
[358197768,1744830638457,-152.899801,0.00055464,120]
[358197769,1744830638466,-500.0,0.00055464,120]
[358197770,1744830638475,-151.0,0.00055464,120]
[358197771,1744830638485,-151.0,0.00055464,120]
[358197772,1744830638494,-151.0,0.00055464,120]
[358197774,1744830638687,-151.0,0.00055464,120]
[358197775,1744830638706,-151.0,0.00055464,120]
[358197776,1744830638719,-151.0,0.00055464,120]
[358197777,1744830638729,-500.0,0.00055464,120]
[358197778,1744830638738,-1618.29,0.00055464,120]
[358197779,1744830638749,-500.0,0.00055465,120]
[358197780,1744830638759,-150.0,0.00055465,14]
[358197782,1744830638768,-3750.0,0.00055466,120]
[358197784,1744830638777,-150.0,0.00055466,14]
[358197786,1744830638787,-500.0,0.00055467,120]
[358197788,1744830638796,-1045.42,0.00055467,120]
[358197790,1744830638805,-500.0,0.00055467,120]
[358197792,1744830638815,-500.0,0.00055467,120]
[358197794,1744830638829,-500.0,0.00055467,120]
[358197796,1744830638839,-1516.88,0.00055467,120]
[358197798,1744830638849,-200.0,0.00055467,64]
[358197801,1744830638858,-207.4,0.00055467,64]
[358197803,1744830638868,-215.0738,0.00055467,64]
[358197805,1744830638877,-223.0315306,0.00055467,64]
[358197807,1744830638887,-231.28369723,0.00055467,64]
[358197809,1744830638896,-239.84119403,0.00055467,64]
[358197811,1744830638905,-248.71531821,0.00055467,64]
[358197813,1744830638915,-257.91778498,0.00055467,64]
[358197815,1744830638924,-267.46074303,0.00055467,64]
[358197817,1744830638933,-277.35679052,0.00055467,64]
[358197819,1744830638942,-287.61899177,0.00055467,64]
[358197821,1744830638951,-298.26089446,0.00055467,64]
[358197823,1744830638961,-309.29654756,0.00055467,64]
[358197825,1744830638970,-320.74051982,0.00055467,64]
[358197826,1744830638979,-332.60791905,0.00055467,64]
[358197829,1744830638988,-344.91441206,0.00055467,64]
[358197830,1744830638997,-357.6762453,0.00055467,64]
[358197832,1744830639007,-370.91026638,0.00055467,64]
[358197834,1744830639015,-384.63394623,0.00055467,64]
[358197836,1744830639024,-600.0,0.00055467,64]
[358197838,1744830639034,-318.939996,0.00055468,7]
[358197840,1744830639043,-7959.04,0.00055468,120]
[358197842,1744830639052,-494.98204,0.00055468,120]
[358197844,1744830639061,-968.88,0.00055468,120]
[358197846,1744830639070,-500.0,0.00055468,120]
[358197848,1744830639080,-500.0,0.00055468,120]
[358197850,1744830639089,-445.21456083,0.00055468,120]
[358197852,1744830639098,-500.0,0.00055468,120]
[358197854,1744830639107,-500.0,0.00055468,120]
[358197856,1744830639116,-524.17,0.00055468,120]
[358197858,1744830639125,-500.0,0.00055468,120]
[358197860,1744830639135,-500.0,0.00055468,120]
[358197862,1744830639144,-500.0,0.00055468,120]
[358197864,1744830639153,-500.0,0.00055468,120]
[358197866,1744830639162,-500.0,0.00055468,120]
[358197868,1744830639171,-500.0,0.00055468,120]
[358197870,1744830639180,-500.0,0.00055468,120]
[358197872,1744830639189,-305.78175646,0.00055468,120]
[358197875,1744830639202,-618.05971789,0.00055468,120]
[358197876,1744830639211,-500.0,0.00055468,120]
[358197879,1744830639220,-1192.3,0.00055469,120]
[358197880,1744830639229,-1579.3,0.00055469,120]
[358197882,1744830639239,-771.18,0.00055469,8]
[358197884,1744830639248,-1172.38,0.00055469,120]
[358197886,1744830639257,-500.0,0.00055469,120]
[358197888,1744830639266,-500.0,0.00055469,120]
[358197890,1744830639276,-500.0,0.00055469,120]
[358197892,1744830639284,-500.0,0.00055469,120]
[358197894,1744830639294,-500.0,0.00055469,120]
[358197896,1744830639303,-500.0,0.00055469,120]
[358197898,1744830639313,-380.88054144,0.00055469,120]
[358197900,1744830639323,-548.18059976,0.00055469,120]
[358197902,1744830639334,-508.47856931,0.00055469,120]
[358197904,1744830639343,-500.0,0.00055469,120]
[358197906,1744830639355,-500.0,0.00055469,120]
[358197908,1744830639364,-500.0,0.00055469,120]
[358197910,1744830639374,-500.0,0.00055469,120]
[358197912,1744830639383,-610.08,0.00055469,120]
[358197914,1744830639392,-500.0,0.00055469,120]
[358197916,1744830639402,-500.0,0.00055469,120]
[358197918,1744830639411,-636.35619444,0.00055469,120]
[358197920,1744830639420,-500.0,0.00055469,120]
[358197922,1744830639429,-500.0,0.00055469,120]
[358197924,1744830639438,-500.0,0.00055469,120]
[358197926,1744830639448,-500.0,0.00055469,120]
[358197928,1744830639457,-500.0,0.00055469,120]
[358197930,1744830639466,-622.15,0.00055469,120]
[358197932,1744830639475,-500.0,0.00055469,120]
[358197934,1744830639485,-500.0,0.00055469,120]
[358197936,1744830639494,-500.0,0.00055469,120]
[358197938,1744830639503,-500.0,0.00055469,120]
[358197940,1744830639512,-500.0,0.00055469,120]
[358197942,1744830639522,-525.94,0.00055469,120]
[358197944,1744830639531,-500.0,0.00055469,120]
[358197945,1744830639539,-500.0,0.00055469,120]
[358197947,1744830639549,-500.0,0.00055469,120]
[358197949,1744830639558,-500.0,0.00055469,120]
[358197951,1744830639567,-500.0,0.00055469,120]
[358197953,1744830639576,-500.0,0.00055469,120]
[358197955,1744830639585,-577.68988771,0.00055469,120]
[358197956,1744830639594,-500.0,0.00055469,120]
[358197958,1744830639605,-500.0,0.00055469,120]
[358197960,1744830639618,-680.35,0.00055469,120]
[358197962,1744830639627,-500.0,0.00055469,120]
[358197964,1744830639636,-1000.0,0.00055469,120]
[358197966,1744830639645,-500.0,0.00055469,120]
[358197968,1744830639655,-495.60304616,0.00055469,120]
[358197970,1744830639664,-500.0,0.00055469,120]
[358197972,1744830639674,-500.0,0.00055469,120]
[358197974,1744830639684,-500.0,0.00055469,120]
[358197976,1744830639694,-284.41433455,0.00055469,120]
[358197978,1744830639703,-500.0,0.00055469,120]
[358197980,1744830639713,-500.0,0.00055469,120]
[358197982,1744830639722,-500.0,0.00055469,120]
[358197984,1744830639731,-633.44,0.00055469,120]
[358197986,1744830639741,-500.0,0.00055469,120]
[358197987,1744830639750,-151.0,0.00055469,30]
[358197989,1744830639759,-151.0,0.00055469,30]
[358197991,1744830639768,-763.58,0.00055469,120]
[358197993,1744830639779,-500.0,0.00055469,120]
[358197995,1744830639788,-500.0,0.00055469,120]
[358197997,1744830639797,-500.0,0.00055469,120]
[358197999,1744830639807,-500.0,0.00055469,120]
[358198001,1744830639816,-500.0,0.00055469,120]
[358198003,1744830639826,-2516.51,0.00055469,120]
[358198005,1744830639835,-500.0,0.00055469,120]
[358198007,1744830639844,-500.0,0.00055469,120]
[358198009,1744830639853,-1799.29,0.00055469,120]
[358198011,1744830639863,-500.0,0.00055469,120]
[358198013,1744830639872,-906.19,0.00055469,120]
[358198015,1744830639882,-500.0,0.00055469,120]
[358198017,1744830639897,-633.91,0.00055469,120]
[358198019,1744830639907,-538.7876967,0.00055469,120]
[358198021,1744830639917,-500.0,0.00055469,120]
[358198023,1744830639926,-4616.81,0.00055469,120]
[358198025,1744830639936,-500.0,0.00055469,120]
[358198027,1744830639946,-500.0,0.0005547,120]
[358198029,1744830639956,-1045.42,0.00055472,120]
[358198031,1744830639965,-500.0,0.00055472,120]
[358198032,1744830639974,-500.0,0.00055472,120]
[358198034,1744830639983,-1516.88,0.00055472,120]
[358198036,1744830639993,-500.0,0.00055473,15]
[358198038,1744830640002,-441.83627154,0.00055473,15]
[358198040,1744830640011,-500.0,0.00055473,15]
[358198042,1744830640020,-500.0,0.00055473,15]
[358198044,1744830640029,-500.0,0.00055473,2]
[358198046,1744830640039,-643.77,0.00055473,120]
[358198048,1744830640048,-643.77,0.00055473,120]
[358198050,1744830640057,-500.0,0.00055473,120]
[358198052,1744830640066,-500.0,0.00055473,120]
[358198054,1744830640075,-500.0,0.00055474,120]
[358198056,1744830640085,-715.77,0.00055474,120]
[358198058,1744830640094,-7959.04,0.00055474,120]
[358198061,1744830640103,-968.88,0.00055474,120]
[358198063,1744830640112,-500.0,0.00055474,120]
[358198064,1744830640122,-500.0,0.00055474,120]
[358198066,1744830640132,-500.0,0.00055474,120]
[358198068,1744830640141,-500.0,0.00055474,120]
[358198070,1744830640151,-500.0,0.00055474,120]
[358198072,1744830640160,-500.0,0.00055474,120]
[358198074,1744830640170,-500.0,0.00055474,120]
[358198076,1744830640179,-500.0,0.00055474,120]
[358198078,1744830640189,-500.0,0.00055474,30]
[358198080,1744830640197,-500.0,0.00055474,120]
[358198082,1744830640207,-500.0,0.00055474,120]
[358198084,1744830640216,-500.0,0.00055474,120]
[358198086,1744830640225,-500.0,0.00055474,120]
[358198088,1744830640234,-500.0,0.00055474,120]
[358198090,1744830640244,-500.0,0.00055474,120]
[358198092,1744830640253,-500.0,0.00055474,120]
[358198094,1744830640263,-500.0,0.00055474,120]
[358198096,1744830640272,-610.08,0.00055474,120]
[358198098,1744830640281,-500.0,0.00055474,120]
[358198100,1744830640291,-500.0,0.00055474,120]
[358198102,1744830640300,-500.0,0.00055474,120]
[358198104,1744830640310,-500.0,0.00055474,120]
[358198106,1744830640319,-500.0,0.00055474,120]
[358198108,1744830640328,-500.0,0.00055474,120]
[358198110,1744830640338,-500.0,0.00055474,120]
[358198112,1744830640346,-500.0,0.00055474,120]
[358198114,1744830640356,-622.15,0.00055474,120]
[358198116,1744830640366,-500.0,0.00055474,120]
[358198118,1744830640375,-500.0,0.00055474,120]
[358198119,1744830640384,-500.0,0.00055474,120]
[358198121,1744830640394,-500.0,0.00055474,120]
[358198123,1744830640403,-500.0,0.00055474,120]
[358198125,1744830640412,-500.0,0.00055474,120]
[358198127,1744830640421,-500.0,0.00055474,120]
[358198129,1744830640430,-500.0,0.00055474,120]
[358198131,1744830640439,-500.0,0.00055474,120]
[358198133,1744830640448,-500.0,0.00055474,120]
[358198135,1744830640458,-500.0,0.00055474,120]
[358198137,1744830640467,-525.94,0.00055474,120]
[358198139,1744830640476,-398.24762461,0.00055474,120]
[358198141,1744830640486,-500.0,0.00055474,120]
[358198143,1744830640495,-500.0,0.00055474,120]
[358198145,1744830640504,-635.32,0.00055474,120]
[358198147,1744830640514,-635.32,0.00055474,120]
[358198149,1744830640523,-500.0,0.00055474,120]
[358198151,1744830640532,-500.0,0.00055474,120]
[358198153,1744830640540,-509.71,0.00055474,120]
[358198155,1744830640550,-524.17,0.00055474,120]
[358198157,1744830640559,-509.71,0.00055474,120]
[358198159,1744830640568,-500.0,0.00055474,120]
[358198161,1744830640577,-500.0,0.00055474,120]
[358198163,1744830640586,-148553.1,0.00055474,7]
[358198164,1744830640595,-148553.1,0.00055474,7]
[358198166,1744830640608,-500.0,0.00055474,120]
[358198168,1744830640618,-500.0,0.00055474,120]
[358198170,1744830640629,-500.0,0.00055474,120]
[358198172,1744830640638,-500.0,0.00055474,120]
[358198174,1744830640648,-194.28,0.00055474,120]
[358198176,1744830640658,-520.32,0.00055474,120]
[358198178,1744830640667,-680.35,0.00055474,120]
[358198180,1744830640677,-520.32,0.00055474,120]
[358198182,1744830640688,-500.0,0.00055474,120]
[358198184,1744830640697,-500.0,0.00055474,120]
[358198186,1744830640707,-500.0,0.00055474,120]
[358198188,1744830640715,-500.0,0.00055474,120]
[358198190,1744830640725,-500.0,0.00055474,120]
[358198192,1744830640734,-500.0,0.00055474,120]
[358198194,1744830640743,-500.0,0.00055474,120]
[358198196,1744830640753,-500.0,0.00055474,120]
[358198198,1744830640763,-1396.29,0.00055474,2]
[358198200,1744830640772,-1396.29,0.00055474,2]
[358198202,1744830640782,-500.0,0.00055474,120]
[358198204,1744830640791,-239.72,0.00055474,5]
[358198206,1744830640801,-500.0,0.00055474,120]
[358198208,1744830640812,-643.77,0.00055474,120]
[358198210,1744830640821,-151.0,0.00055474,120]
[358198212,1744830640831,-151.0,0.00055474,120]
[358198213,1744830640840,-151.0,0.00055474,120]
[358198215,1744830640850,-151.0,0.00055474,120]
[358198217,1744830640862,-500.0,0.00055474,120]
[358198219,1744830640871,-500.0,0.00055474,120]
[358198221,1744830640881,-151.0,0.00055474,120]
[358198223,1744830640891,-763.58,0.00055474,120]
[358198225,1744830640900,-500.0,0.00055474,120]
[358198227,1744830640909,-500.0,0.00055474,120]
[358198229,1744830640918,-500.0,0.00055474,120]
[358198231,1744830640928,-75.95264444,0.00055474,120]
[358198318,1744830641772,-75.04735556,0.00055474,120]
[358198320,1744830641782,-2341.209607,0.00055474,120]
[358198322,1744830641791,-500.0,0.00055474,120]
[358198324,1744830641801,-500.0,0.00055474,120]
[358198326,1744830641811,-2341.209607,0.00055474,120]
[358198328,1744830641820,-154.723628,0.00055474,120]
[358198330,1744830641830,-153.373625,0.00055474,120]
[358198331,1744830641839,-500.0,0.00055474,120]
[358198332,1744830641848,-500.0,0.00055474,120]
[358198333,1744830641988,-2516.51,0.00055474,120]
[358198334,1744830641999,-500.0,0.00055474,120]
[358198335,1744830642008,-500.0,0.00055474,120]
[358198336,1744830642018,-151.0,0.00055474,110]
[358198337,1744830642027,-602.47213417,0.00055474,120]
[358198338,1744830642037,-500.0,0.00055474,120]
[358198339,1744830642046,-151.0,0.00055474,120]
[358198341,1744830642056,-2578.79,0.00055474,120]
[358198343,1744830642065,-2578.79,0.00055474,120]
[358198345,1744830642075,-151.0,0.00055474,120]
[358198347,1744830642084,-151.0,0.00055474,120]
[358198349,1744830642094,-1799.29,0.00055474,120]
[358198351,1744830642104,-500.0,0.00055474,120]
[358198353,1744830642113,-151.0,0.00055474,120]
[358198355,1744830642122,-500.0,0.00055474,120]
[358198357,1744830642133,-151.0,0.00055474,120]
[358198359,1744830642143,-500.0,0.00055474,120]
[358198361,1744830642154,-151.0,0.00055474,120]
[358198363,1744830642164,-906.19,0.00055474,120]
[358198365,1744830642173,-500.0,0.00055474,120]
[358198367,1744830642183,-151.0,0.00055474,120]
[358198369,1744830642193,-151.0,0.00055474,120]
[358198371,1744830642202,-151.0,0.00055474,120]
[358198373,1744830642212,-500.0,0.00055474,120]
[358198375,1744830642221,-500.0,0.00055474,120]
[358198377,1744830642231,-151.0,0.00055474,120]
[358198379,1744830642240,-633.91,0.00055474,120]
[358198381,1744830642250,-500.0,0.00055474,120]
[358198383,1744830642259,-500.0,0.00055474,120]
[358198385,1744830642269,-500.0,0.00055474,120]
[358198387,1744830642278,-500.0,0.00055474,120]
[358198389,1744830642288,-4616.81,0.00055474,120]
[358198391,1744830642297,-500.0,0.00055474,120]
[358198393,1744830642306,-483.48690935,0.00055474,120]
[358198395,1744830642315,-1618.29,0.00055474,120]
[358198397,1744830642325,-1618.29,0.00055474,120]
[358198399,1744830642334,-500.0,0.00055475,120]
[358198401,1744830642343,-500.0,0.00055475,120]
[358198403,1744830642353,-500.0,0.00055475,120]
[358198405,1744830642362,-500.0,0.00055475,120]
[358198407,1744830642371,-1192.3,0.00055475,120]
[358198409,1744830642381,-416.03128251,0.00055475,120]
[358198410,1744830642390,-1579.3,0.00055475,120]
[358198412,1744830642403,-771.18,0.00055475,8]
[358198414,1744830642412,-500.0,0.00055475,120]